bitfinex-derivatives/quotes_ETHF0:USTF0_20251028
["timestamp","ask_amount","ask_price","bid_price","bid_amount"]
[1761685943344,0.00222545,3960.3,3960.1,0.4545]
[1761685943549,3.4244,3961.6,3960.3,0.45448]
[1761685943743,3.4244,3961.6,3961.0,3.2078]
[1761685943950,1.2893,3961.8,3961.4,3.2078]
[1761685944250,3.4244,3961.7,3961.4,3.2078]
[1761685944445,3.4274537,3961.7,3961.4,3.2078]
[1761685944642,3.4274537,3961.7,3961.0,3.2078]
[1761685944843,0.0030537,3961.7,3961.5,3.2078]
[1761685945041,3.4244,3961.6,3961.0,3.2078]
[1761685945741,3.4244,3961.6,3961.0,3.66219]
[1761685945947,0.0030537,3961.7,3961.5,3.2078]
[1761685946349,0.022,3962.8,3961.6,0.076]
[1761685946652,0.022,3962.8,3962.1,3.2078]
[1761685946944,3.4244,3962.6,3962.1,3.2078]
[1761685947341,3.42750458,3962.6,3961.6,3.2078]
[1761685947746,3.4244,3961.7,3961.2,3.2078]
[1761685947949,3.4244,3961.7,3960.8,3.2078]
[1761685948844,4.7137,3960.9,3960.8,3.2078]
[1761685949045,0.00310458,3962.6,3960.9,3.35106635]
[1761685949046,3.4244,3962.5,3960.9,3.35106635]
[1761685949244,3.4244,3962.5,3961.7,3.2078]
[1761685949750,3.4244,3962.5,3962.4,3.2078]
[1761685950053,3.4244,3962.5,3962.4,0.00285561]
[1761685950452,7.7854,3962.5,3962.4,0.00285561]
[1761685950752,7.7854,3962.5,3961.0,4.346]
[1761685950959,3.4244,3962.1,3961.4,3.2078]
[1761685951449,3.4244,3961.7,3961.0,7.5538]
[1761685952048,3.4244,3961.7,3961.0,3.21032042]
[1761685952355,3.4244,3961.4,3961.0,0.00252042]
[1761685952557,3.4244,3961.2,3961.0,0.00252042]
[1761685953051,3.2078,3962.0,3961.0,0.00252042]
[1761685953250,3.42750458,3962.6,3961.8,3.2078]
[1761685954053,3.4244,3962.5,3961.0,3.21032042]
[1761685954256,3.4244,3962.5,3961.4,3.2078]
[1761685955255,3.4244,3961.7,3961.4,3.2078]
[1761685955954,7.7744,3961.8,3961.4,3.2078]
[1761685956259,3.4244,3961.7,3961.4,3.2078]
[1761685956653,3.4244,3962.4,3961.4,3.2078]
[1761685956960,0.00310458,3962.6,3961.5,3.38145533]
[1761685957159,0.00310458,3962.6,3962.2,0.45427]
[1761685957355,0.00310458,3962.6,3962.0,0.45429]
[1761685957660,0.00310458,3962.6,3962.4,0.45424]
[1761685957855,0.00310458,3962.6,3962.5,3.2078]
[1761685959153,3.42750458,3962.6,3962.5,3.2078]
[1761685960648,0.00310458,3962.6,3962.5,3.2078]
[1761685961256,3.44370458,3962.6,3962.5,3.2078]
[1761685962861,7.76870458,3962.6,3962.5,3.2078]
[1761685963065,3.44370458,3962.6,3962.5,3.2078]
[1761685963257,0.00310458,3962.6,3962.5,3.2078]
[1761685964859,3.44370458,3962.6,3962.5,3.2078]
[1761685965359,0.00310458,3962.6,3962.5,3.2078]
[1761685967367,3.44370458,3962.6,3962.5,3.2078]
[1761685969963,0.00310458,3962.6,3962.5,3.2078]
[1761685970965,0.022,3962.8,3962.7,0.45421]
[1761685971366,0.022,3962.8,3962.7,0.53021]
[1761685972163,0.02428602,3962.8,3962.7,0.53021]
[1761685972869,0.02428602,3962.8,3962.7,0.45421]
[1761685973261,3.46488602,3962.8,3962.5,3.2078]
[1761685973467,7.915,3962.6,3962.5,3.2078]
[1761685973766,7.915,3962.6,3961.2,3.2078]
[1761685973767,3.4406,3961.5,3961.2,3.2078]
[1761685973966,4.03550347,3961.4,3961.2,3.2078]
[1761685974166,3.4406,3961.4,3961.2,3.2078]
[1761685974471,0.86381692,3963.4,3961.6,3.2078]
[1761685974771,3.46488602,3962.8,3962.7,3.2078]
[1761685974971,4.06009603,3962.8,3962.7,3.2078]
[1761685976271,3.4406,3962.7,3962.0,3.2078]
[1761685976464,3.4406,3962.3,3961.9,4.32]
[1761685976664,3.4406,3962.1,3961.9,4.32]
[1761685977164,3.4406,3961.9,3961.6,3.2078]
[1761685977473,4.03611511,3961.8,3961.6,3.2078]
[1761685977675,3.4406,3961.8,3961.6,3.2078]
[1761685977874,4.03605294,3961.7,3961.6,3.2078]
[1761685978378,3.4406,3962.3,3961.6,3.2078]
[1761685978671,0.59566117,3962.2,3961.6,3.2078]
[1761685978872,0.59566117,3962.1,3961.6,3.2078]
[1761685979069,4.03626117,3962.0,3961.2,3.2078]
[1761685979268,3.2078,3962.3,3961.2,3.2078]
[1761685979269,3.4406,3961.8,3961.2,3.2078]
[1761685979474,3.4406,3961.5,3961.2,3.2078]
[1761685979674,3.4406,3961.3,3961.2,3.2078]
[1761685979976,4.03626117,3961.3,3961.2,3.2078]
[1761685980476,5.7483,3961.1,3961.0,0.00252042]
[1761685980771,8.51066117,3961.1,3961.0,0.00252042]
[1761685981077,0.19983913,3961.1,3961.0,0.00252042]
[1761685981263,3.4406,3961.7,3961.0,3.28632042]
[1761685981578,1.3881,3962.4,3961.4,3.2078]
[1761685981579,3.4406,3962.2,3961.4,3.2078]
[1761685981871,4.8287,3962.4,3961.5,4.31]
[1761685982066,3.4406,3962.2,3961.5,4.31]
[1761685982970,3.4406,3961.7,3961.5,4.31]
[1761685983778,3.4406,3961.7,3961.0,3.21032042]
[1761685984281,3.4406,3961.4,3961.0,0.00252042]
[1761685984774,3.4406,3961.2,3961.0,0.00252042]
[1761685985871,7.915,3961.1,3961.0,0.00252042]
[1761685986176,5.7483,3960.3,3960.2,3.2078]
[1761685986676,3.4406,3959.9,3959.8,3.2078]
[1761685986865,3.4406,3959.9,3959.5,4.306]
[1761685987069,2.3077,3959.6,3959.5,0.0019028]
[1761685987265,3.4406,3959.6,3959.5,0.0019028]
[1761685990179,0.0026916,3959.9,3959.5,0.0019028]
[1761685990383,0.0026916,3959.9,3959.7,0.45455]
[1761685991268,0.0026916,3959.9,3959.8,3.2078]
[1761685991474,0.0026916,3959.9,3959.8,6.51140987]
[1761685991675,0.0026916,3959.9,3959.8,3.2838]
[1761685992580,4.5959,3960.9,3959.8,6.53189773]
[1761685992581,1.3881,3960.9,3959.8,6.53189773]
[1761685992878,1.3881,3960.9,3960.4,3.2078]
[1761685992879,3.252,3960.8,3960.4,3.2078]
[1761685993081,3.2078,3961.3,3960.7,0.45444]
[1761685993583,6.46203932,3961.3,3960.8,0.45442]
[1761685993785,0.00223932,3961.3,3961.1,0.45439]
[1761685994080,0.00223932,3961.3,3960.9,5.06382408]
[1761685994282,0.00223932,3961.3,3961.2,3.2078]
[1761685994778,0.00223932,3961.3,3961.2,6.52743914]
[1761685995376,0.00223932,3961.3,3961.2,8.33415643]
[1761685995683,3.252,3962.2,3961.2,6.52743914]
[1761685995882,3.252,3962.2,3961.7,3.2078]
[1761685996083,3.252,3962.2,3961.8,4.307]
[1761685996674,3.2546078,3962.2,3961.8,4.307]
[1761685997387,3.252,3961.8,3961.3,3.2078]
[1761685997885,5.5239,3961.4,3961.3,3.2078]
[1761685998983,7.7971,3961.3,3961.2,4.306]
[1761685999184,3.252,3961.2,3960.7,4.306]
[1761685999380,3.252,3961.2,3960.8,0.45442]
[1761685999581,3.252,3961.2,3961.0,3.2078]
[1761685999979,3.252,3961.8,3961.1,4.76039]
[1761686000179,3.252,3961.8,3961.2,0.45438]
[1761686000783,3.252,3961.8,3961.5,0.45435]
[1761686000985,3.252,3961.8,3961.6,4.305]
[1761686002280,3.252,3961.8,3961.6,4.75933]
[1761686002476,3.252,3962.1,3961.6,6.11171729]
[1761686002780,0.0026078,3962.2,3962.0,3.66209]
[1761686002985,0.0026078,3962.2,3962.1,4.305]
[1761686003385,3.2546078,3962.2,3962.1,4.305]
[1761686005883,0.0026078,3962.2,3962.1,4.75928]
[1761686006092,3.2546078,3962.2,3962.1,4.305]
[1761686006792,7.7997078,3962.2,3962.1,4.305]
[1761686006992,5.5265078,3962.2,3962.1,4.305]
[1761686007287,3.2546078,3962.2,3962.1,4.305]
[1761686009280,0.0026078,3962.2,3962.1,4.75928]
[1761686009480,3.2546078,3962.2,3962.1,9.31951729]
[1761686009686,7.7997078,3962.2,3962.1,3.2078]
[1761686009886,2.2719,3961.2,3960.9,1.80671729]
[1761686010088,1.3624,3962.0,3960.4,3.2078]
[1761686010089,7.7971,3960.5,3960.4,3.2078]
[1761686010693,5.5239,3960.5,3960.4,3.2078]
[1761686010894,7.7971,3960.5,3960.4,3.2078]
[1761686011189,2.2719,3960.3,3960.2,4.303]
[1761686011395,7.7971,3960.3,3960.2,4.303]
[1761686012693,7.7971,3960.1,3960.0,3.2078]
[1761686013089,7.7971,3959.9,3959.8,4.302]
[1761686013390,1.3624,3960.0,3959.5,0.0019028]
[1761686013391,7.7971,3959.6,3959.5,0.0019028]
[1761686013692,7.7971,3959.6,3959.5,2.8e-06]
[1761686021002,3.252,3959.6,3959.5,2.8e-06]
[1761686022396,3.252,3959.6,3959.5,3.2078028]
[1761686023298,2.76799351,3959.6,3959.5,3.6623828]
[1761686023497,1.3624,3960.0,3959.9,0.1346]
[1761686023692,1.3624,3960.0,3959.9,4.88913]
[1761686023999,1.3624,3960.6,3960.2,0.4545]
[1761686024199,1.3624,3960.6,3960.3,4.3]
[1761686024899,1.3624,3960.6,3960.3,4.75448]
[1761686025095,1.3624,3960.6,3960.5,0.1346]
[1761686025295,1.3624,3960.6,3959.8,0.1346]
[1761686025296,5.8581,3959.9,3959.8,3.2078]
[1761686025506,3.0468,3960.5,3959.8,3.477]
[1761686025703,3.0468,3960.5,3960.3,3.66229]
[1761686026004,3.0468,3960.5,3960.4,4.4346]
[1761686027098,3.0468,3960.5,3960.3,3.66229]
[1761686027099,3.0468,3960.3,3959.9,3.2078]
[1761686027302,3.0468,3960.3,3960.0,4.3]
[1761686028800,2.2243,3960.1,3960.0,4.3]
[1761686029003,5.2711,3960.1,3960.0,4.3]
[1761686029512,5.2711,3960.1,3960.0,4.75452]
[1761686030209,5.2711,3960.1,3960.0,4.3]
[1761686030800,7.4895,3960.1,3960.0,4.3]
[1761686032800,3.0468,3960.1,3960.0,4.5692]
[1761686033209,5.2711,3960.1,3960.0,4.4346]
[1761686033706,3.0468,3960.1,3960.0,4.88912]
[1761686033898,3.0468,3960.1,3960.0,4.5692]
[1761686034413,3.0468,3960.1,3960.0,5.02372]
[1761686034801,3.0468,3960.1,3960.0,4.5692]
[1761686035102,3.0468,3960.1,3960.0,4.3]
[1761686035103,5.2711,3960.1,3960.0,4.3]
[1761686035707,7.4895,3960.1,3960.0,4.3]
[1761686037604,3.0468,3960.1,3960.0,5.02372]
[1761686038208,3.0468,3960.1,3960.0,6.82478655]
[1761686038508,3.0468,3960.5,3960.4,0.1346]
[1761686038718,3.0468,3960.5,3960.4,10.03329357]
[1761686038914,5.2711,3960.5,3960.4,9.89869357]
[1761686039214,3.0468,3960.5,3960.4,8.22547]
[1761686040001,3.0468,3960.9,3960.8,0.1346]
[1761686040309,7.4895,3960.9,3960.8,7.5018]
[1761686040507,7.4895,3960.9,3960.8,4.294]
[1761686043012,7.4895,3960.7,3960.6,7.4998]
[1761686044208,7.4895,3960.7,3960.6,9.3092598]
[1761686044816,1.4154,3962.4,3961.2,1.8867]
[1761686045117,1.4154,3962.4,3961.7,1.80938276]
[1761686045306,1.4154,3962.4,3961.8,6.10038276]
[1761686045706,2.2243,3961.9,3961.8,4.291]
[1761686046216,1.4154,3962.4,3961.9,1.2578]
[1761686046416,1.4154,3962.4,3961.9,3.06517823]
[1761686046817,4.4092,3962.0,3961.9,3.06517823]
[1761686047810,3.0468,3962.0,3961.9,3.06517823]
[1761686048011,3.0494078,3962.2,3962.1,1.2578]
[1761686048219,3.0494078,3962.2,3962.1,10.5612331]
[1761686048411,3.0494078,3962.2,3962.1,8.7546]
[1761686049313,6.8423078,3962.2,3962.1,7.4968]
[1761686049506,1.4154,3963.0,3962.1,7.4968]
[1761686049507,2.8228,3962.8,3962.7,0.0527]
[1761686049711,2.8228,3962.8,3962.7,7.5485]
[1761686050507,6.74268927,3962.8,3962.7,7.49875213]
[1761686056726,6.74268927,3962.8,3962.7,7.53055213]
[1761686059526,6.74268927,3962.8,3962.7,7.49875213]
[1761686059732,6.8689,3961.7,3961.6,1.8066331]
[1761686059921,6.8689,3961.5,3961.4,3.2078]
[1761686060121,2.9518,3962.2,3961.7,6.8233]
[1761686060323,8.0667,3962.4,3962.3,2.0145]
[1761686060530,8.0667,3962.4,3962.3,4.281]
[1761686060729,8.0667,3962.4,3962.3,4.28357769]
[1761686060930,4.1496,3962.4,3962.3,6.29807769]
[1761686061130,8.0667,3962.4,3962.3,4.28357769]
[1761686061330,8.0667,3962.4,3962.3,6.29807769]
[1761686062428,2.9518,3962.4,3962.3,11.02837769]
[1761686063030,2.9518,3962.4,3962.3,8.29937769]
[1761686063329,2.9518,3962.4,3962.3,11.02837769]
[1761686063528,3.23258927,3962.8,3962.3,11.02837769]
[1761686063529,2.7635,3962.7,3962.6,1.9985]
[1761686063731,6.5105,3962.7,3962.6,6.2775]
[1761686064123,6.5105,3962.7,3962.6,4.279]
[1761686065933,6.5105,3961.7,3961.6,3.2078]
[1761686066133,6.5105,3961.7,3961.6,7.4858]
[1761686066932,6.5105,3961.7,3961.6,7.4878572]
[1761686067131,6.5105,3961.7,3961.6,4.2800572]
[1761686067332,2.7635,3962.2,3961.6,14.0788572]
[1761686067729,2.7635,3962.2,3962.1,3.862]
[1761686067935,2.7635,3962.2,3962.1,8.139]
[1761686068230,2.7635,3962.2,3962.1,10.868]
[1761686068439,4.6054,3962.6,3962.5,1.9985]
[1761686068632,4.6054,3962.6,3962.5,6.2755]
[1761686069334,2.78828927,3962.8,3962.7,1.9985]
[1761686070132,4.63018927,3962.8,3962.7,1.9985]
[1761686071233,4.63018927,3962.8,3962.7,3.862]
[1761686071439,0.02478927,3962.8,3962.7,7.04521]
[1761686071740,0.02478927,3962.8,3962.7,8.8518431]
[1761686072338,0.02478927,3962.8,3962.7,7.04521]
[1761686072741,0.02478927,3962.8,3962.7,6.591]
[1761686073932,2.78828927,3962.8,3962.7,6.591]
[1761686074134,0.02478927,3962.8,3962.7,6.591]
[1761686074438,5.1624,3963.6,3962.8,3.20429]
[1761686074637,5.1624,3963.6,3963.1,1.81202059]
[1761686074833,5.1624,3963.6,3963.2,6.08502059]
[1761686075237,5.16541902,3963.6,3963.3,1.81202059]
[1761686075438,1.8419,3963.5,3963.4,3.81052059]
[1761686075838,3.747,3963.5,3963.4,1.81202059]
[1761686076240,6.5105,3963.5,3963.4,1.81202059]
[1761686076543,4.6054,3963.4,3963.3,3.81052059]
[1761686077041,4.6054,3963.4,3963.3,1.9985]
[1761686077444,4.6054,3963.4,3963.3,3.80934941]
[1761686077638,2.7635,3963.4,3963.3,6.6121]
[1761686078342,2.7635,3963.4,3963.3,8.42258462]
[1761686078538,4.6054,3963.4,3963.3,5.67248462]
[1761686079342,4.6054,3963.4,3963.3,5.67217844]
[1761686079645,6.5105,3963.4,3963.3,3.80867844]
[1761686080340,6.5105,3963.4,3963.3,3.8083776]
[1761686080843,4.6686,3963.4,3963.2,1.8098776]
[1761686081049,4.441,3962.8,3962.7,3.6088]
[1761686081342,2.6632,3963.0,3962.9,6.0629]
[1761686081538,2.6632,3963.2,3962.8,2.4541]
[1761686081744,5.6086,3963.0,3962.9,1.8505]
[1761686081948,7.3864,3963.0,3962.9,6.1185]
[1761686082938,7.3864,3963.0,3962.9,4.268]
[1761686083144,6.1797,3962.7,3962.6,2.25458275]
[1761686083339,6.1797,3962.6,3962.3,3.2078]
[1761686083540,4.441,3962.5,3962.4,6.1165]
[1761686084243,2.6632,3962.5,3962.4,10.3289]
[1761686084438,6.1797,3962.5,3962.4,1.8505]
[1761686084644,6.1797,3962.5,3962.4,6.1165]
[1761686084842,3.2078,3963.3,3962.9,1.8505]
[1761686085044,3.19621902,3963.6,3963.5,1.8505]
[1761686085250,4.93491902,3963.6,3963.5,6.07481769]
[1761686085449,6.1797,3963.5,3963.4,1.80981769]
[1761686085643,6.1797,3963.5,3963.4,6.1155]
[1761686086049,6.1797,3963.5,3963.4,4.265]
[1761686088744,6.1797,3963.5,3963.4,7.92531769]
[1761686088941,6.1797,3963.5,3963.4,4.265]
[1761686090538,6.1797,3963.5,3963.4,6.1155]
[1761686090741,4.441,3963.5,3963.4,7.8738]
[1761686091850,6.1797,3963.5,3963.4,4.265]
[1761686092446,6.1797,3963.5,3963.4,6.1155]
[1761686092748,6.1797,3963.5,3963.4,7.92531769]
[1761686092948,6.1797,3963.5,3963.4,9.68361769]
[1761686093344,2.66621902,3963.6,3963.5,6.0629]
[1761686093544,0.00301902,3963.6,3963.5,6.51702]
[1761686093744,0.00301902,3963.6,3963.5,6.0629]
[1761686094044,0.00301902,3963.6,3963.5,6.51702]
[1761686094045,2.66621902,3963.6,3963.5,6.51702]
[1761686094248,0.00301902,3963.6,3963.5,6.51702]
[1761686094850,6.1797,3963.5,3963.4,4.265]
[1761686095541,6.1797,3963.2,3963.1,2.25458275]
[1761686095849,7.3864,3963.0,3962.9,1.80969213]
[1761686096040,7.3864,3963.0,3962.9,6.06769213]
[1761686096440,7.3864,3963.0,3962.9,6.1085]
[1761686096642,7.3864,3963.0,3962.9,4.258]
[1761686097243,7.3864,3963.0,3962.9,6.06873962]
[1761686097443,7.3864,3963.0,3962.9,4.258]
[1761686098446,3.2078,3963.3,3963.2,1.8505]
[1761686098656,6.1797,3963.3,3963.2,4.257]
[1761686098854,9.3875,3963.3,3963.2,4.257]
[1761686100150,9.4635,3963.3,3963.2,4.257]
[1761686100353,6.1797,3962.6,3962.5,1.8505]
[1761686100648,6.1797,3962.6,3962.5,4.255]
[1761686100851,3.2078,3962.8,3962.7,1.8505]
[1761686101157,9.3875,3962.8,3962.7,1.81311538]
[1761686101556,4.441,3962.6,3962.5,6.1055]
[1761686101858,6.1797,3962.6,3962.5,6.1055]
[1761686102762,6.1797,3962.6,3962.5,4.255]
[1761686102956,6.1797,3962.6,3962.5,6.1055]
[1761686103457,6.1797,3962.6,3962.5,7.8638]
[1761686104663,2.6632,3962.6,3962.5,10.3179]
[1761686105662,1.2067,3963.0,3962.9,1.8505]
[1761686105859,1.2067,3963.0,3962.9,6.1035]
[1761686106159,7.6488,3963.3,3963.2,1.8505]
[1761686106353,9.3875,3963.3,3963.2,9.67255771]
[1761686106557,1.20971902,3963.6,3963.5,3.6088]
[1761686106865,4.9856,3964.1,3964.0,3.6088]
[1761686107065,6.1923,3964.5,3964.4,1.8505]
[1761686107254,7.6488,3964.5,3964.4,10.3139]
[1761686107456,7.6488,3964.5,3964.4,7.8598]
[1761686107855,9.39032474,3964.5,3964.4,6.06486667]
[1761686108156,6.18252474,3964.5,3964.4,4.25404648]
[1761686108351,6.18252474,3964.5,3964.4,7.91536667]
[1761686108863,4.44382474,3964.5,3964.4,9.67366667]
[1761686109059,6.18252474,3964.5,3964.4,6.06486667]
[1761686109465,6.18252474,3964.5,3964.4,4.25404648]
[1761686109665,6.18252474,3964.5,3964.4,11.23286667]
[1761686109666,0.00282474,3964.5,3964.4,11.23286667]
[1761686109866,0.00282474,3964.5,3964.4,9.42204648]
[1761686110359,5.7239,3964.9,3964.4,9.42204648]
[1761686110360,5.7239,3964.9,3964.8,5.1646]
[1761686110564,7.3064,3964.9,3964.8,9.31102944]
[1761686110762,7.3064,3964.9,3964.8,7.5024]
[1761686110965,9.0065,3964.9,3964.8,6.05763448]
[1761686111257,3.2826,3964.7,3964.6,1.80863448]
[1761686111464,5.7987,3964.6,3964.5,1.80863448]
[1761686111659,5.7987,3964.5,3964.4,1.81168096]
[1761686112063,9.0065,3964.5,3964.4,0.00304648]
[1761686112363,9.0065,3964.5,3964.4,4.25004648]
[1761686112761,1.0203,3964.8,3964.7,1.6327]
[1761686112961,2.6028,3964.8,3964.7,5.8797]
[1761686113465,5.1189,3964.8,3964.7,7.5004]
[1761686113659,3.2826,3964.6,3964.5,1.80863448]
[1761686113866,6.819,3963.6,3963.5,4.246]
[1761686114060,1.5825,3963.9,3963.5,4.246]
[1761686114265,1.5825,3963.9,3963.8,5.8451]
[1761686114470,1.5825,3963.9,3963.8,10.0911]
[1761686114767,5.7987,3963.9,3963.8,4.24828154]
[1761686115169,4.0986,3963.9,3963.8,10.09338154]
[1761686115365,4.2162,3964.0,3963.8,4.24828154]
[1761686115569,4.0986,3963.9,3963.8,5.88098154]
[1761686115766,2.5161,3963.9,3963.8,10.09338154]
[1761686115972,4.0986,3964.1,3964.0,1.6327]
[1761686116264,4.0986,3964.1,3964.0,5.8777]
[1761686117467,5.7239,3964.3,3964.2,1.6327]
[1761686117768,5.7239,3964.3,3964.0,4.245]
[1761686117769,4.0986,3964.1,3964.0,4.245]
[1761686118165,4.0986,3964.1,3964.0,5.8777]
[1761686118766,5.7987,3964.1,3964.0,5.8777]
[1761686119172,5.7987,3964.1,3964.0,4.245]
[1761686119667,2.5161,3962.8,3962.6,3.15641585]
[1761686119869,2.5161,3962.8,3962.2,2.5917]
[1761686119870,3.2078,3963.4,3962.8,4.2124]
[1761686120074,2.5161,3963.3,3963.2,5.8451]
[1761686120275,5.1189,3963.6,3963.5,1.6327]
[1761686120575,5.1189,3963.6,3963.5,5.8737]
[1761686120774,4.0986,3963.6,3963.5,5.87616208]
[1761686120976,4.0986,3963.6,3963.5,4.24346208]
[1761686121169,6.819,3963.6,3963.5,5.87616208]
[1761686121369,5.7987,3963.6,3963.5,5.87616208]
[1761686121575,4.0986,3963.6,3963.5,5.87616208]
[1761686121778,5.7239,3963.8,3963.7,1.6327]
[1761686122074,7.3064,3963.8,3963.7,1.6327]
[1761686122473,7.3064,3963.8,3963.5,4.24346208]
[1761686122474,4.0986,3963.6,3963.5,4.24346208]
[1761686122874,6.819,3963.6,3963.5,4.24346208]
[1761686123764,6.819,3963.6,3963.5,0.00246208]
[1761686123965,6.819,3963.6,3963.5,4.24146208]
[1761686124579,5.7987,3962.8,3962.5,1.80732888]
[1761686124878,1.5825,3962.4,3962.3,6.03172888]
[1761686125072,1.5825,3962.4,3962.3,10.26972888]
[1761686125278,1.5825,3962.4,3962.3,11.89042888]
[1761686125572,5.7987,3962.4,3962.3,4.24049394]
[1761686125876,9.0065,3962.4,3962.3,4.24049394]
[1761686126577,6.4904,3962.4,3962.3,8.46489394]
[1761686127467,3.2826,3962.4,3962.3,8.46489394]
[1761686127681,9.0065,3962.4,3962.3,4.24049394]
[1761686128575,6.4904,3962.4,3962.3,8.46489394]
[1761686128972,9.0065,3962.4,3962.3,4.24049394]
[1761686129172,6.4904,3962.4,3962.3,8.46489394]
[1761686130479,3.2078,3962.8,3962.7,5.8451]
[1761686130670,4.7903,3962.8,3962.7,10.0801]
[1761686131069,3.2078,3962.8,3962.7,10.0801]
[1761686131483,9.0065,3962.8,3962.7,4.235]
[1761686132083,9.0065,3962.8,3962.7,6.8267]
[1761686132472,9.0065,3962.8,3962.7,4.235]
[1761686133474,5.7987,3962.4,3962.3,0.00249394]
[1761686133782,9.0065,3962.4,3962.3,6.82719394]
[1761686134783,9.0065,3962.4,3962.3,4.23549394]
[1761686134978,10.0268,3962.4,3962.3,4.23549394]
[1761686135479,9.0065,3962.4,3962.3,4.23549394]
[1761686137980,10.0268,3962.4,3962.3,0.00249394]
[1761686138387,4.7903,3962.4,3962.3,10.07859394]
[1761686138680,3.2078,3963.6,3963.0,3.537]
[1761686138981,2.5161,3964.5,3963.9,1.6327]
[1761686139186,2.5161,3964.5,3964.1,2.5917]
[1761686139486,1.5825,3964.3,3964.2,2.5917]
[1761686139875,4.2991,3964.1,3964.0,6.7429]
[1761686140081,5.8755,3964.1,3964.0,4.23]
[1761686141378,6.8122,3964.1,3964.0,4.23]
[1761686142389,10.02,3964.1,3964.0,4.23]
[1761686142885,5.8755,3963.6,3963.5,4.228]
[1761686143390,5.8755,3963.6,3963.5,6.7409]
[1761686143582,1.7182,3963.7,3963.6,2.5129]
[1761686143790,1.7182,3963.7,3963.6,4.2277]
[1761686145384,2.5809,3964.0,3963.7,2.5129]
[1761686145888,1.7182,3963.8,3963.7,4.2277]
[1761686146383,1.7182,3963.8,3963.7,5.8425]
[1761686146788,5.8755,3963.8,3963.1,5.01512888]
[1761686146988,1.7182,3962.4,3962.3,7.43799394]
[1761686147290,2.5809,3963.2,3962.7,2.5129]
[1761686147489,4.2991,3962.6,3962.5,2.5129]
[1761686147680,4.2991,3962.6,3962.5,6.7369]
[1761686147880,5.8755,3962.6,3962.5,4.224]
[1761686149691,5.8755,3962.6,3962.5,6.7369]
[1761686150386,5.8755,3962.6,3962.5,4.224]
[1761686151085,5.8755,3962.4,3962.3,0.00249394]
[1761686151793,5.9515,3962.4,3962.3,0.00249394]
[1761686152091,5.8755,3961.9,3961.8,4.222]
[1761686152789,0.9367,3961.8,3961.0,3.3296]
[1761686153094,1.7182,3961.2,3961.1,2.5129]
[1761686153296,2.5809,3961.7,3961.1,5.8425]
[1761686153487,1.7182,3961.2,3961.1,5.8425]
[1761686154290,1.7182,3961.2,3961.1,10.0625]
[1761686158295,1.7182,3961.4,3961.3,4.2277]
[1761686158491,2.5809,3961.6,3961.0,0.00270383]
[1761686158492,5.8755,3961.1,3961.0,0.00270383]
[1761686158692,0.93949259,3961.8,3961.2,4.2834]
[1761686158693,0.00279259,3961.8,3961.2,4.2834]
[1761686159000,1.7182,3961.5,3961.4,2.5129]
[1761686159197,1.7182,3961.5,3961.3,4.218]
[1761686159198,0.00279259,3961.8,3961.7,1.7148]
[1761686159501,0.00279259,3961.8,3961.7,5.8425]
[1761686159696,0.00279259,3961.8,3961.7,5.84554524]
[1761686160199,1.72099259,3961.8,3961.7,5.84554524]
[1761686160402,5.87829259,3961.8,3961.7,0.00304524]
[1761686161403,6.55919259,3961.8,3961.7,0.00304524]
[1761686161799,5.87829259,3961.8,3961.7,0.00304524]
[1761686161995,6.55919259,3961.8,3961.7,0.00304524]
[1761686163602,14.63519259,3961.8,3961.7,0.00304524]
[1761686164298,1.7182,3960.4,3960.3,4.2277]
[1761686164499,1.7182,3960.4,3960.3,10.0575]
[1761686165395,5.7887,3961.0,3960.4,2.5129]
[1761686166495,1.7182,3959.4,3959.3,5.7207]
[1761686166700,1.7182,3959.4,3959.3,9.0503]
[1761686166903,1.7182,3960.1,3960.0,1.7148]
[1761686167205,3.2078,3960.7,3960.6,4.2834]
[1761686167399,3.2078,3961.5,3961.4,3.3296]
[1761686167705,0.00279259,3961.8,3961.7,1.7148]
[1761686167706,3.29739259,3961.8,3961.7,1.7148]
[1761686167895,1.7182,3961.6,3961.5,2.5129]
[1761686168100,0.00279259,3961.8,3961.7,5.8425]
[1761686168403,1.72099259,3961.8,3961.7,5.8425]
[1761686168608,1.4435,3961.5,3961.4,6.40726601]
[1761686169007,1.4435,3961.5,3961.4,7.95216601]
[1761686169201,0.00279259,3961.8,3961.6,1.5449]
[1761686169409,5.22519259,3961.8,3961.4,4.21666601]
[1761686169608,1.4435,3961.5,3961.4,7.95216601]
[1761686169904,2.9577,3961.5,3961.4,3.84346601]
[1761686170112,5.1024,3961.5,3961.4,0.00266601]
[1761686172301,1.4435,3961.5,3961.4,5.30296601]
[1761686172498,4.7567,3961.6,3961.5,5.3003]
[1761686172709,4.7567,3961.6,3961.5,9.5113]
[1761686173510,8.4156,3961.6,3961.5,4.211]
[1761686174005,5.2078,3961.5,3961.4,0.00266601]
[1761686174811,5.2078,3961.5,3960.5,0.45446]
[1761686174812,3.0631,3960.4,3960.0,1.80770119]
[1761686175017,0.6623,3959.2,3959.1,3.04375301]
[1761686175214,1.52163794,3959.2,3957.4,2.3267]
[1761686175401,0.86381692,3958.7,3957.0,3.2624]
[1761686175711,0.65782102,3958.6,3957.2,2.3267]
[1761686175910,0.00228859,3958.6,3957.2,2.32997732]
[1761686176208,3.2078,3958.3,3957.7,2.3267]
[1761686176711,3.2078,3958.3,3958.2,2.3267]
[1761686177006,3.89827456,3958.3,3958.2,2.3267]
[1761686177205,3.2078,3958.3,3957.6,2.3267]
[1761686177406,3.2078,3957.7,3957.6,2.3267]
[1761686177812,3.2078,3957.7,3957.3,2.3267]
[1761686179417,3.2078,3957.7,3957.6,1.5141]
[1761686179617,3.2078,3957.7,3957.6,3.9928]